[Event "Polish University-ch Open 2024"]
[Site "Lublin"]
[Date "2024.02.23"]
[Round "2.16"]
[White "Suder, Jakub"]
[Black "Syrkiewicz, Michal"]
[Result "1-0"]
[ECO "D20"]
[WhiteElo "2333"]
[BlackElo "2074"]
[Annotator "TA"]
[PlyCount "81"]
[EventDate "2024.02.22"]
[EventType "swiss"]
[EventCountry "POL"]
[SourceTitle "playchess.com"]
[Source "ChessBase"]
[SourceQuality "1"]
[TimeControl "600+3"]

{[%evp 14,81,38,27,33,23,22,11,14,2,0,-4,27,21,50,13,0,-26,-21,-50,-23,-24,0,0,0,10,0,0,92,91,89,76,133,144,287,262,1080,1066,1035,952,962,405,374,0,989,972,1597,1768,1556,1758,1194,1046,29996,983,967,939,1314,1320,1314,1314,1271,1277,1141,1139,1051,1051,1020,447,447,447]} 1. d4 {[%emt 0:00:03]} d5 {[%emt 0:00:06]} 2. c4 {[%emt 0:00:01]} dxc4 {[%emt 0:00:04]} 3. e4 {[%emt 0:00:01]} c5 {[%emt 0:00:05]} 4. d5 {[%emt 0:00:03]} e6 {[%emt 0:00:02]} 5. Bxc4 {[%emt 0:00:02]} Nf6 {[%emt 0:00:45]} 6. Nc3 {[%emt 0:01:11]} exd5 {[%emt 0:00:07]} 7. Nxd5 {[%emt 0:00:06]} Nxd5 {[%emt 0:00:19]} 8. Bxd5 {[%emt 0:00:04]} Bd6 {[%emt 0:00:58]} 9. Nf3 {[%emt 0:00:20] [#] Ng5 would now be deadly.} O-O {[%emt 0:00:31]} 10. O-O {[%emt 0:00:03]} Qc7 {[%emt 0:01:16] The position is equal.} 11. Qb3 {[%emt 0:01:02]} Nc6 {[%emt 0:00:26]} 12. h3 {[%emt 0:00:30]} a6 {[%emt 0:00:55]} 13. Rd1 {[%emt 0:00:23]} Nb4 {[%emt 0:00:43]} 14. e5 {[%emt 0:01:47]} Be7 {[%emt 0:00:56]} 15. Be4 {[%emt 0:00:41]} Be6 {[%emt 0:00:14]} 16. Qe3 {[%emt 0:00:13]} Rfd8 {[%emt 0:00:42]} ({Much weaker is} 16... Bxa2 17. Bd2 Be6 18. Bxb4 cxb4 19. Rac1 $11) 17. Bd2 {[%emt 0:00:02]} Nd5 {[%emt 0:00:26]} (17... Nxa2 $5 18. Bd3 (18. Ng5 Bxg5 19. Qxg5 Rd4 $17) 18... g6 $15) 18. Qe2 {[%emt 0:00:09]} h6 {[%emt 0:00:07] Dodges Ng5} 19. Rac1 {[%emt 0:00:05]} Qb6 $1 {[%emt 0:00:24]} 20. b3 {[%emt 0:00:26]} Rac8 {[%emt 0:00:07]} (20... Rd7 $11 {keeps the balance.}) 21. Bb1 $16 {[%emt 0:00:03] White stays focused until the end.} Bf8 {[%emt 0:00:19]} 22. Qe4 {[%emt 0:00:14]} g6 {[%emt 0:00:01]} (22... f5 $142 23. exf6 Nxf6) 23. Qh4 {[%emt 0:00:06]} Ne7 {[%emt 0:00:56]} (23... Kh7 $16 24. Ng5+ Kg8) 24. Bxh6 $18 {[%emt 0:00:24]} Nf5 $2 {[%emt 0:00:37]} (24... Rxd1+ 25. Rxd1 Bxh6) 25. Bxf5 {[%emt 0:00:03]} Bxf5 {[%emt 0:00:01] Black is weak on the dark squares} 26. Bxf8 {[%emt 0:00:13]} Kxf8 {[%emt 0:00:06]} 27. Qh6+ {[%emt 0:00:08]} (27. Ng5 $142) 27... Ke7 {[%emt 0:00:03]} 28. Qh4+ $2 {[%emt 0:00:19]} (28. Nd2 Bd3 29. Qh4+ g5 30. Qxg5+ Ke8 31. e6 Qxe6 32. Re1 (32. Rxc5 Rxc5 33. Qxc5 Be2 $17)) 28... Kf8 {[%emt 0:00:01]} 29. Ng5 {[%emt 0:00:04] [#] Threatens to win with Qh7.} Qc7 {[%emt 0:00:09]} 30. Qh8+ {[%emt 0:00:19]} Ke7 {[%emt 0:00:02]} 31. Qf6+ {[%emt 0:00:24]} Ke8 {[%emt 0:00:03]} 32. e6 {[%emt 0:00:16]} fxe6 {[%emt 0:00:01]} 33. Nxe6 {[%emt 0:00:24]} (33. Qh8+ $142 Ke7 34. Qg7+ Ke8 35. Qg8+ Ke7 36. Qf7#) 33... Bxe6 {[%emt 0:00:02] White is clearly winning.} 34. Qxe6+ {[%emt 0:00:01]} Qe7 {[%emt 0:00:07]} 35. Qg8+ {[%emt 0:00:03]} Qf8 {[%emt 0:00:00]} 36. Qxg6+ {[%emt 0:00:13]} Qf7 {[%emt 0:00:01]} 37. Rxd8+ {[%emt 0:00:09]} Rxd8 {[%emt 0:00:01]} 38. Re1+ {[%emt 0:00:05]} Kf8 {[%emt 0:00:01]} 39. Qh6+ {[%emt 0:00:06]} Qg7 {[%emt 0:00:10]} 40. Qxg7+ {[%emt 0:00:02]} (40. Qf4+ $142 Qf7 41. Qe5) 40... Kxg7 {[%emt 0:00:00]} 41. Re7+ {[%emt 0:00:01] Weighted Error Value: White=0.93/Black=0.51.  Mistake:       	---       	Black=4      Inaccurate:     	White=3     	Black=4      OK:         	White=6     	Black=4      Best:        	White=5     	Black=2      Strong:       	---       	Black=1} 1-0

[Event "Polish University-ch Open 2024"]
[Site "Lublin"]
[Date "2024.02.23"]
[Round "2.17"]
[White "Babiarz, Arkadiusz"]
[Black "Brozyna, Mateusz"]
[Result "1-0"]
[ECO "C54"]
[WhiteElo "2159"]
[BlackElo "2259"]
[Annotator "TA"]
[PlyCount "75"]
[EventDate "2024.02.22"]
[EventType "swiss"]
[EventCountry "POL"]
[SourceTitle "playchess.com"]
[Source "ChessBase"]
[SourceQuality "1"]
[TimeControl "600+3"]

{[%evp 17,74,6,9,5,12,0,0,-29,0,0,0,0,0,0,25,0,29,17,25,12,18,0,25,5,22,0,31,0,72,58,49,48,47,41,62,0,0,0,417,0,685,695,824,727,745,710,1417,527,556,510,645,639,627,452,712,680,685,605,29999]} 1. e4 {[%emt 0:00:01]} e5 {[%emt 0:00:01]} 2. Nf3 {[%emt 0:00:02]} Nc6 {[%emt 0:00:02]} 3. Bc4 {[%emt 0:00:01]} Bc5 {[%emt 0:00:02]} 4. c3 {[%emt 0:00:01]} Nf6 {[%emt 0:00:01]} 5. d4 {[%emt 0:00:01]} exd4 {[%emt 0:00:09]} 6. e5 {[%emt 0:00:02]} d5 {[%emt 0:00:06]} 7. Bb5 {[%emt 0:00:01]} Ne4 {[%emt 0:00:02]} 8. cxd4 {[%emt 0:00:02]} Bb6 {[%emt 0:00:01]} 9. Nc3 {[%emt 0:00:03]} O-O {[%emt 0:00:05]} 10. Be3 {[%emt 0:00:02]} Bg4 {[%emt 0:00:24]} 11. h3 {[%emt 0:00:01]} Bh5 {[%emt 0:00:01]} 12. Rc1 {[%emt 0:00:56] The position is equal.} Nxc3 {[%emt 0:00:26]} 13. bxc3 {[%emt 0:00:03]} f6 {[%emt 0:00:02]} 14. exf6 {[%emt 0:00:26]} Qxf6 {[%emt 0:00:12]} 15. Be2 {[%emt 0:00:01]} Ne7 {[%emt 0:00:39]} 16. O-O {[%emt 0:01:13]} c6 {[%emt 0:00:31]} 17. Bg5 {[%emt 0:00:56]} Qd6 {[%emt 0:00:23]} 18. Ne5 {[%emt 0:01:09] Repels Ng6} Bxe2 {[%emt 0:00:12]} 19. Qxe2 {[%emt 0:00:02][%cal Oe5c4]} Rae8 {[%emt 0:00:21]} 20. Qd3 {[%emt 0:00:48]} Nf5 {[%emt 0:00:49]} 21. Rfe1 {[%emt 0:00:48]} h6 {[%emt 0:00:54]} 22. Bd2 {[%emt 0:00:02]} Rf6 {[%emt 0:01:29]} (22... c5 $11) 23. Ng4 {[%emt 0:00:46]} Rxe1+ {[%emt 0:00:13]} 24. Rxe1 {[%emt 0:00:01][%cal Oe1e5] [#] aiming for Re5!} Rf8 {[%emt 0:00:01]} 25. Ne5 {[%emt 0:01:01]} Bc7 {[%emt 0:00:22]} 26. c4 {[%emt 0:00:05] White is more active.} (26. Qb1 $14 b5 27. Qd3) 26... dxc4 {[%emt 0:00:28]} 27. Qxc4+ {[%emt 0:00:02]} Kh7 $2 {[%emt 0:00:01][%mdl 8192]} (27... Qd5 $11 {and Black is okay.}) 28. Bc3 $2 {[%emt 0:00:19]} (28. Bb4 $18 Qd8 29. Bxf8 Qxf8 30. d5) 28... Bb6 $2 {[%emt 0:00:30][%mdl 8192] [#]} (28... Qd5 $11) 29. Bb4 $1 $18 {[%emt 0:00:09]} Qf6 {[%emt 0:02:10]} 30. Bxf8 {[%emt 0:00:01]} Qxf8 {[%emt 0:00:13]} 31. Nd7 {[%emt 0:00:21]} (31. d5 $2 Bxf2+ 32. Kh1 Bxe1 $19) 31... Qd6 {[%emt 0:00:03]} 32. Nxb6 {[%emt 0:01:24]} (32. Qf7 $142 Nxd4 33. Re8 Ne2+ 34. Rxe2 (34. Kh1 $2 {leads to mate.} Qd1+ 35. Kh2 Qg1#) 34... Qd1+ 35. Kh2 Bc7+ 36. g3 Bxg3+ 37. Kg2 (37. Kxg3 Qg1+ 38. Kf3 Qh1+ 39. Kf4 Qh2+ 40. Ke3 Qd6 41. Rd2 Qa3+ 42. Ke4 Qc3) 37... Qd5+ 38. Qxd5 (38. Kxg3 $2 {too greedy.} Qxf7 39. Ne5 Qc7 $19) 38... cxd5 39. fxg3 (39. Kxg3 Kg6 $18)) 32... axb6 {[%emt 0:00:02][%mdl 4096] Endgame. KQR-KQN} 33. Re8 {[%emt 0:00:02] Threatening mate with Qg8+.} Nxd4 {[%emt 0:00:17][%cal Od4f3]} 34. Qd3+ {[%emt 0:00:13]} g6 {[%emt 0:00:07]} 35. Qe4 {[%emt 0:00:07]} Nf5 {[%emt 0:00:02] Against Re7+} (35... Kg7 $142 36. Re7+ Kf8 37. Rxb7 b5) 36. g4 {[%emt 0:00:17]} Qd1+ {[%emt 0:00:16]} 37. Kh2 {[%emt 0:00:01][%cal Oe4e5] White wants to mate with Qe5!} Nh4 {[%emt 0:00:02]} 38. Qe7# {[%emt 0:00:02] Weighted Error Value: White=0.64/Black=0.86.  Loses game:     	---       	Black=2      Missed win:     	White=1     	---        Mistake:       	White=1     	Black=1      Inaccurate:     	White=2     	Black=3      OK:         	White=3     	Black=3      Best:        	White=1     	Black=3      Strong:       	White=1     	---} 1-0

[Event "Polish University-ch Open 2024"]
[Site "Lublin"]
[Date "2024.02.23"]
[Round "2.18"]
[White "Redzisz, Michal"]
[Black "Miasik, Adrian"]
[Result "0-1"]
[ECO "B27"]
[WhiteElo "2229"]
[BlackElo "2036"]
[Annotator "TA"]
[PlyCount "73"]
[EventDate "2024.02.22"]
[EventType "swiss"]
[EventCountry "POL"]
[SourceTitle "playchess.com"]
[Source "ChessBase"]
[SourceQuality "1"]
[TimeControl "600+3"]

{[%evp 10,73,11,7,11,16,15,7,8,15,15,10,11,5,3,10,19,0,0,-35,-47,-104,0,-64,-31,-56,0,-34,0,-30,-21,-29,78,56,193,191,244,26,92,-43,0,0,-8,-17,-10,-9,0,-96,-105,-95,-32,-29,-18,-73,-70,-158,-151,-170,-34,-34,0,0,0,-243,-251,-433]} 1. e4 {[%emt 0:00:03]} c5 {[%emt 0:00:01]} 2. Nf3 {[%emt 0:00:01]} g6 {[%emt 0:00:00]} 3. c3 {[%emt 0:00:02]} Bg7 {[%emt 0:00:05]} 4. d4 {[%emt 0:00:01]} cxd4 {[%emt 0:00:01]} 5. cxd4 {[%emt 0:00:01]} d5 {[%emt 0:00:01]} 6. Bb5+ {[%emt 0:00:01]} Bd7 {[%emt 0:00:16]} 7. Bxd7+ {[%emt 0:00:08]} Qxd7 {[%emt 0:01:54]} 8. e5 {[%emt 0:00:01]} Nc6 {[%emt 0:00:43] The position is equal.} 9. O-O {[%emt 0:00:02]} f6 {[%emt 0:00:00]} 10. Re1 {[%emt 0:02:19]} fxe5 {[%emt 0:00:58]} 11. Nxe5 {[%emt 0:01:44]} Nxe5 {[%emt 0:00:02]} 12. dxe5 {[%emt 0:00:01]} e6 {[%emt 0:00:01]} 13. Bg5 {[%emt 0:02:50]} Ne7 {[%emt 0:00:19]} 14. Qf3 {[%emt 0:01:04]} Nc6 {[%emt 0:06:24]} 15. Nc3 {[%emt 0:00:19]} (15. Nd2 $15) 15... Qf7 {[%emt 0:00:00]} (15... Bxe5 $2 {perishes.} 16. Rxe5 Nxe5 17. Qf6 $18) ({Better is} 15... Nxe5 $17 16. Qh3 O-O) 16. Qxf7+ {[%emt 0:01:31]} Kxf7 {[%emt 0:00:00]} 17. f4 {[%emt 0:00:02]} Bf8 {[%emt 0:00:00]} (17... h6 $15 18. Bh4 g5 19. fxg5 Bxe5 (19... Nxe5 20. Re2 $14) 20. Rf1+ Kg7) 18. Bh4 {[%emt 0:00:15]} Nb4 {[%emt 0:00:00]} 19. Re2 {[%emt 0:00:09]} a6 {[%emt 0:00:00]} 20. a3 {[%emt 0:00:00]} Nd3 {[%emt 0:00:00]} (20... Nc6 $11 21. Bf2 Na5) 21. Rd1 {[%emt 0:00:05]} Nc5 {[%emt 0:00:21]} (21... Nxf4 $14 22. Rf1 Bh6) 22. b4 $18 {[%emt 0:00:15] Black is weak on the dark squares} Nd7 {[%emt 0:00:00]} (22... b5 $142 23. bxc5 Bxc5+ 24. Kf1 Rhf8) 23. Rc2 $2 {[%emt 0:00:07]} (23. Ne4 Be7 24. Bf6 Bxf6 25. exf6 h6 $11) ({White has to play} 23. Nxd5 $1 $18 {And now Nc7 would win.} exd5 24. e6+ Ke8 25. exd7+ Kxd7 26. Rxd5+ Kc6 27. Red2) 23... Rc8 {[%emt 0:00:00] [#]} (23... Be7 $1 $11 24. Bxe7 Kxe7) 24. Bf2 {[%emt 0:00:04]} ({Only move:} 24. Rdc1 $1 $16 {[%cal Oc3e4] Threatens to win with Ne4!} Rc4 25. Ne4 Rxe4 26. Rc7) 24... Be7 {[%emt 0:00:00]} 25. Rdc1 {[%emt 0:00:01]} Rc4 {[%emt 0:00:00][%cal Oh8c8] Strongly threatening ...Rhc8!} 26. Na4 {[%emt 0:00:09]} Rhc8 {[%emt 0:00:00]} 27. Rxc4 {[%emt 0:00:01]} dxc4 {[%emt 0:00:00]} 28. Nb6 {[%emt 0:00:05]} (28. Nc5 $11 {remains equal.} Nxc5 (28... Bxc5 29. bxc5 g5 30. fxg5 $11) 29. Rxc4) 28... Nxb6 $17 {[%emt 0:00:00]} 29. Bxb6 {[%emt 0:00:01][%mdl 4096] Endgame. KRB-KRB} Rc6 {[%emt 0:00:00]} (29... g5 $17 30. Kf2 gxf4) 30. Be3 $15 {[%emt 0:00:03]} b5 {[%emt 0:00:00][%cal Oa6a5]} 31. Kf2 {[%emt 0:00:03] [#]} (31. Ra1 $11) 31... a5 $1 $17 {[%emt 0:00:00]} 32. bxa5 {[%emt 0:00:05]} (32. Bd2 $15) 32... Bxa3 {[%emt 0:00:33]} 33. Rc2 {[%emt 0:00:05]} b4 {[%emt 0:00:00]} ({Black should play} 33... Ke8 $19 {Hoping for ...Kd7.} 34. Ke2 Ra6) 34. a6 $1 $15 {[%emt 0:00:01]} c3 {[%emt 0:00:00]} 35. a7 {[%emt 0:00:00]} Ra6 {[%emt 0:00:00] ...Bb2 is the strong threat.} 36. Bd4 $2 {[%emt 0:00:01]} (36. Ke2 $11) 36... Bb2 $19 {[%emt 0:00:00] aiming for ...b3.} 37. Ke3 $2 {[%emt 0:00:14] Never resign too early!   Weighted Error Value: White=0.52/Black=0.34.  Loses game:     	White=1     	---        Missed win:     	White=1     	---        Mistake:       	White=6     	Black=8      Inaccurate:     	White=4     	Black=4      OK:         	White=11    	Black=7      Best:        	White=1     	Black=3      Strong:       	White=1     	Black=1} (37. Re2 b3 38. Re3) 0-1

[Event "Polish University-ch Open 2024"]
[Site "Lublin"]
[Date "2024.02.23"]
[Round "3.1"]
[White "Kosakowski, Jakub"]
[Black "Kulesza, Andrzej"]
[Result "1-0"]
[ECO "A18"]
[WhiteElo "2482"]
[BlackElo "2076"]
[Annotator "TA"]
[PlyCount "105"]
[EventDate "2024.02.22"]
[EventType "swiss"]
[EventCountry "POL"]
[SourceTitle "playchess.com"]
[Source "ChessBase"]
[SourceQuality "1"]
[TimeControl "600+3"]

{[%evp 10,105,8,3,60,50,52,48,29,26,34,12,20,14,27,27,29,0,0,0,22,6,12,0,0,0,0,0,0,0,0,-38,-41,-40,-46,-54,-59,-56,-35,-40,48,37,106,85,65,51,304,322,314,315,327,331,327,314,479,408,700,604,718,684,663,614,786,774,1924,1704,1599,1462,29974,29974,29954,29966,29970,29971,29977,29977,29980,29981,29980,29974,29985,29985,29987,29979,29990,29989,29989,29985,29992,29993,29995,29996,29996,29997,29997,29997,29997,29998]} 1. c4 {[%emt 0:00:02]} Nf6 {[%emt 0:00:02]} 2. Nc3 {[%emt 0:00:04]} e6 {[%emt 0:00:07]} 3. e4 {[%emt 0:00:08]} d5 {[%emt 0:00:01]} 4. e5 {[%emt 0:00:04]} d4 {[%emt 0:00:07]} 5. exf6 {[%emt 0:00:02]} dxc3 {[%emt 0:00:02]} 6. bxc3 {[%emt 0:00:02]} gxf6 {[%emt 0:00:09]} (6... Qxf6 $11 7. Nf3 b6) 7. Nf3 $14 {[%emt 0:00:27]} c5 {[%emt 0:00:06]} 8. d4 {[%emt 0:00:12]} cxd4 {[%emt 0:00:21] White is slightly better.} 9. cxd4 {[%emt 0:00:02]} Nc6 {[%emt 0:00:16]} 10. Be2 {[%emt 0:00:18]} Bb4+ {[%emt 0:00:17]} 11. Bd2 {[%emt 0:00:03]} Bxd2+ {[%emt 0:00:06]} 12. Qxd2 {[%emt 0:00:02] Threatens to win with 0-0.} Qa5 {[%emt 0:00:10]} 13. Rb1 {[%emt 0:01:01]} Qxd2+ {[%emt 0:00:33]} 14. Kxd2 {[%emt 0:00:03]} Ke7 {[%emt 0:00:21]} 15. Rhd1 {[%emt 0:00:30]} Rd8 {[%emt 0:00:15]} 16. Ke3 {[%emt 0:00:02]} b6 {[%emt 0:00:31]} 17. d5 {[%emt 0:00:38]} Na5 {[%emt 0:00:23]} 18. Nd4 {[%emt 0:00:41]} Bb7 {[%emt 0:00:38]} 19. dxe6 {[%emt 0:02:41]} fxe6 {[%emt 0:00:13][%cal Oa8c8]} 20. Rb5 {[%emt 0:00:19]} e5 {[%emt 0:01:23]} (20... Bxg2 21. Rh5 h6 22. Rg1 $16) 21. Nf5+ {[%emt 0:00:51]} Ke6 {[%emt 0:00:13]} 22. Rxd8 {[%emt 0:00:01]} Rxd8 {[%emt 0:00:03]} 23. g4 {[%emt 0:00:02]} Ba6 {[%emt 0:00:50]} 24. Rd5 {[%emt 0:00:04]} Nc6 {[%emt 0:00:33]} (24... Rd7 $15 25. Rxd7 Kxd7) 25. f4 {[%emt 0:00:20]} Bb7 {[%emt 0:01:33]} (25... Rd7 $14) 26. Bf3 {[%emt 0:00:07] White is more active.} (26. fxe5 {simplifies} fxe5 27. Rxd8 Nxd8 28. Bd3) 26... Ba6 {[%emt 0:00:19]} 27. Rxd8 {[%emt 0:00:18]} Nxd8 $4 {[%emt 0:00:02][%mdl 12288] Endgame. KBN-KBN. A mistake that costs the game.} ({Black should play} 27... exf4+ $14 28. Kxf4 Nxd8) 28. Bd5+ $18 {[%emt 0:00:02]} Kd7 {[%emt 0:00:08] [#]} 29. fxe5 {[%emt 0:00:04]} fxe5 {[%emt 0:00:05]} 30. Ke4 {[%emt 0:00:02]} Nc6 {[%emt 0:00:30]} 31. h4 {[%emt 0:00:09]} Na5 {[%emt 0:00:08]} (31... b5 {keeps fighting.} 32. cxb5 Bxb5) 32. Ne3 {[%emt 0:00:27]} Kd6 {[%emt 0:00:23]} (32... b5 $142 33. c5 (33. Kxe5 Nxc4+ 34. Nxc4 bxc4 $18) 33... Bb7) 33. g5 {[%emt 0:00:02] h5 would now be deadly.} b5 {[%emt 0:00:09]} 34. cxb5 {[%emt 0:00:22]} Bxb5 {[%emt 0:00:01]} 35. Nf5+ {[%emt 0:00:01]} Kc5 {[%emt 0:00:03][%cal Ob5d3]} 36. Kxe5 {[%emt 0:00:06]} Nc4+ {[%emt 0:00:13]} 37. Bxc4 {[%emt 0:00:29]} Bxc4 {[%emt 0:00:01] KB-KN} 38. a3 {[%emt 0:00:00]} a5 {[%emt 0:00:15]} 39. h5 {[%emt 0:00:37] White mates.} Bf7 {[%emt 0:00:05]} 40. Ng3 {[%emt 0:00:14]} Kb5 {[%emt 0:00:02]} 41. Kf6 {[%emt 0:00:02]} Bc4 {[%emt 0:00:03]} 42. g6 {[%emt 0:00:13]} Bd3 {[%emt 0:00:19]} 43. Nf5 {[%emt 0:00:08]} hxg6 {[%emt 0:00:03] [#]} 44. h6 $1 {[%emt 0:00:03]} Bxf5 {[%emt 0:00:01] KB-KPP} (44... gxf5 45. h7) 45. h7 {[%emt 0:00:02]} Ka4 {[%emt 0:00:01]} 46. h8=Q {[%emt 0:00:02]} ({Weaker is} 46. h8=R Kxa3 47. Rb8 Bc2 $11) 46... Kxa3 {[%emt 0:00:02]} 47. Qf8+ {[%emt 0:00:06]} Kb3 {[%emt 0:00:02]} 48. Qb8+ {[%emt 0:00:03]} Ka3 {[%emt 0:00:01]} 49. Ke5 {[%emt 0:00:02]} a4 {[%emt 0:00:01]} 50. Kd4 {[%emt 0:00:01]} Bc2 {[%emt 0:00:08]} 51. Kc3 {[%emt 0:00:02][%csl Gc3][%cal Rb8b2]} Bb3 {[%emt 0:00:01]} 52. Qd6+ {[%emt 0:00:03]} Ka2 {[%emt 0:00:02]} 53. Qd2+ {[%emt 0:00:02] Weighted Error Value: White=0.09 (flawless) /Black=0.43.  Loses game:     	---       	Black=1      Mistake:       	---       	Black=4      Inaccurate:     	White=2     	---        OK:         	White=10    	Black=9      Best:        	White=3     	Black=4} 1-0

[Event "Polish University-ch Open 2024"]
[Site "Lublin"]
[Date "2024.02.23"]
[Round "3.2"]
[White "Hrymowicz, Artur"]
[Black "Janik, Igor"]
[Result "0-1"]
[ECO "B05"]
[WhiteElo "2131"]
[BlackElo "2499"]
[Annotator "TA"]
[PlyCount "76"]
[EventDate "2024.02.22"]
[EventType "swiss"]
[EventCountry "POL"]
[SourceTitle "playchess.com"]
[Source "ChessBase"]
[SourceQuality "1"]
[TimeControl "600+3"]

{[%evp 23,76,21,24,-23,-14,-19,21,-33,0,0,-8,-14,-14,-17,22,-25,-23,-16,-28,-36,-45,-65,-62,-91,-92,-80,-77,-105,-82,-129,-72,-79,-77,-94,-63,-75,-58,-59,-69,-66,-70,-68,-69,-104,-71,-100,-95,-190,-113,-525,-301,-1012,-989,-982,-961]} 1. e4 {[%emt 0:00:02][%cal Be2e4,Be4e5][%mdl 32]} Nf6 {[%emt 0:00:01]} 2. e5 {[%emt 0:00:04]} Nd5 {[%emt 0:00:02]} 3. d4 {[%emt 0:00:03]} d6 {[%emt 0:00:01]} 4. Nf3 {[%emt 0:00:02]} Bg4 {[%emt 0:00:01]} 5. Be2 {[%emt 0:00:02]} e6 {[%emt 0:00:00]} 6. O-O {[%emt 0:00:07]} Be7 {[%emt 0:00:01]} 7. h3 {[%emt 0:00:18]} Bh5 {[%emt 0:00:01]} 8. c4 {[%emt 0:00:23]} Nb6 {[%emt 0:00:01]} 9. exd6 {[%emt 0:00:02]} cxd6 {[%emt 0:00:01]} 10. Nbd2 {[%emt 0:00:34]} O-O {[%emt 0:00:03]} 11. b3 {[%emt 0:00:04]} Nc6 {[%emt 0:00:01]} 12. Bb2 {[%emt 0:00:01]} d5 {[%emt 0:00:01]} 13. Ne5 {[%emt 0:01:12]} (13. c5 {should be considered.} Nd7 14. a3) 13... Bxe2 {[%emt 0:00:01]} 14. Qxe2 {[%emt 0:00:00]} Rc8 {[%emt 0:00:02]} 15. Rfd1 {[%emt 0:02:02]} (15. Nxc6 $11 bxc6 16. c5) 15... Bf6 {[%emt 0:00:04]} 16. Rac1 {[%emt 0:01:21]} dxc4 {[%emt 0:00:02]} 17. Nxc6 {[%emt 0:00:31]} Rxc6 {[%emt 0:00:04]} 18. bxc4 {[%emt 0:00:07]} Qc8 {[%emt 0:00:49]} 19. c5 {[%emt 0:01:33]} (19. Ba3 $142 Re8 20. Ne4) 19... Nd5 $11 {[%emt 0:00:02]} 20. Ne4 {[%emt 0:00:02]} Be7 {[%emt 0:00:03]} 21. Rb1 {[%emt 0:00:28]} b6 {[%emt 0:00:01]} 22. cxb6 {[%emt 0:01:06]} axb6 {[%emt 0:00:02]} 23. Rdc1 {[%emt 0:00:05]} Rxc1+ {[%emt 0:00:04]} 24. Rxc1 {[%emt 0:00:01]} Qa8 {[%emt 0:00:00]} 25. Qc4 {[%emt 0:00:14]} h6 {[%emt 0:00:08]} 26. g3 {[%emt 0:00:05]} (26. a4 $142) 26... Rd8 {[%emt 0:00:05]} (26... Nf4 $142 27. gxf4 Qxe4) 27. Nc3 $17 {[%emt 0:00:17]} Nf6 {[%emt 0:00:23]} 28. Nb5 {[%emt 0:00:12]} Bf8 {[%emt 0:00:11]} 29. a4 {[%emt 0:00:01]} Qf3 {[%emt 0:00:07] Strongly threatening ...Ne4.} 30. Qc3 {[%emt 0:00:23]} Qf5 {[%emt 0:00:05]} 31. Kg2 {[%emt 0:00:02]} Ra8 {[%emt 0:00:07] Black is much more active.} 32. Qb3 {[%emt 0:00:04]} Qe4+ {[%emt 0:00:02]} 33. Kh2 {[%emt 0:00:05]} Qe2 {[%emt 0:00:03]} 34. Rc2 {[%emt 0:00:02]} Qd1 {[%emt 0:00:14]} 35. Qc3 {[%emt 0:00:08] Against Rc8} (35. Kg2 $17) 35... Ne4 {[%emt 0:00:12]} (35... Rxa4 $19 36. Qd2 Qxd2 37. Rxd2 Bb4) 36. Qc7 $2 {[%emt 0:00:04][%mdl 8192] [#]} (36. Qc6 $17 Qd3 (36... Rxa4 $2 {is the wrong capture.} 37. Qxe4 Qf1 38. Nc3 $18) 37. d5 Qxd5 (37... Rxa4 38. dxe6 Ng5 39. exf7+ Kh7 40. Kg2 $11) 38. Qxd5 exd5 39. Nc7 Rxa4 40. Nxd5) 36... Nd2 {[%emt 0:00:20]} 37. Qc6 {[%emt 0:00:02]} (37. Rc1 Qe2 (37... Qxa4 $2 38. Qc6 $19) 38. Kg2) 37... Nf3+ $19 {[%emt 0:00:08]} 38. Kg2 {[%emt 0:00:04]} Ne1+ {[%emt 0:00:01] Weighted Error Value: White=0.61/Black=0.30.  Loses game:     	White=1     	---        Mistake:       	White=5     	Black=2      Inaccurate:     	White=4     	Black=6      OK:         	White=6     	Black=8      Best:        	White=1     	Black=2} (38... Rxa4 $2 39. Rc1 Ne1+ 40. Kg1 $19) 0-1